bitfinex/quotes_BTCUSD_20251011
["timestamp","ask_amount","ask_price","bid_price","bid_amount"]
[1760147804800,0.4082393,111600.0,111590.0,0.1373132]
[1760147805074,0.4082393,111600.0,111590.0,0.2352432]
[1760147805355,0.4082393,111600.0,111590.0,0.1373132]
[1760147807072,0.4295893,111600.0,111590.0,0.0303032]
[1760147807678,0.43469,111600.0,111590.0,0.0001513]
[1760147808489,0.45968999,111600.0,111590.0,0.0001513]
[1760147808915,0.44634999,111600.0,111590.0,0.0001513]
[1760147809265,0.4,111600.0,111590.0,0.0001513]
[1760147809465,0.40822803,111600.0,111590.0,0.0458313]
[1760147809670,0.4,111600.0,111590.0,0.0458313]
[1760147810057,0.40822463,111600.0,111590.0,0.0458313]
[1760147810260,0.42135,111600.0,111590.0,0.0001513]
[1760147810593,0.44634999,111600.0,111590.0,0.0001513]
[1760147810795,0.04634999,111600.0,111590.0,0.0001513]
[1760147810956,0.44634999,111600.0,111590.0,0.0001513]
[1760147812024,0.45968999,111600.0,111590.0,0.0001513]
[1760147813405,0.44923871,111600.0,111590.0,0.0001513]
[1760147813611,0.45746503,111600.0,111580.0,0.0002]
[1760147813824,0.02499999,111590.0,111580.0,0.00035133]
[1760147813998,0.91810486,111590.0,111580.0,0.00035133]
[1760147814208,0.90849802,111590.0,111580.0,0.00035133]
[1760147814775,0.89310487,111590.0,111580.0,0.00035133]
[1760147814991,1.28487855,111600.0,111580.0,0.20833133]
[1760147815202,0.88487855,111600.0,111590.0,0.04935]
[1760147815407,0.88487855,111600.0,111590.0,0.04350888]
[1760147815586,1.28487855,111600.0,111590.0,0.04350888]
[1760147816022,0.88487855,111600.0,111590.0,0.10422888]
[1760147816423,0.01334,111610.0,111590.0,0.10422888]
[1760147816636,0.4,111600.0,111590.0,0.0301519]
[1760147817120,0.4,111600.0,111580.0,0.00035133]
[1760147817684,0.4,111590.0,111580.0,0.00035133]
[1760147818669,0.88487855,111600.0,111580.0,0.00035133]
[1760147818910,0.4,111590.0,111580.0,0.00035133]
[1760147819767,0.02596837,111590.0,111580.0,0.00035133]
[1760147819965,0.43829952,111590.0,111580.0,0.00035133]
[1760147820146,0.4,111560.0,111540.0,0.04935]
[1760147820365,0.4,111560.0,111540.0,5.044e-05]
[1760147821360,0.88487855,111570.0,111540.0,5.044e-05]
[1760147821568,0.4,111560.0,111540.0,5.044e-05]
[1760147823058,0.4,111560.0,111540.0,0.04940044]
[1760147823552,0.4,111560.0,111540.0,0.14731044]
[1760147823750,0.88487855,111570.0,111550.0,0.2381319]
[1760147823973,0.88487855,111570.0,111560.0,0.04935]
[1760147824187,0.88487855,111590.0,111560.0,0.20798]
[1760147824393,0.88487855,111610.0,111580.0,0.04935]
[1760147824607,0.4,111600.0,111580.0,0.04935]
[1760147824983,0.01246,111590.0,111570.0,0.17950189]
[1760147825195,0.4,111600.0,111580.0,0.04935]
[1760147825397,0.4,111600.0,111570.0,0.0795019]
[1760147825398,0.01246,111590.0,111570.0,0.0795019]
[1760147825538,0.01246,111590.0,111570.0,0.17955233]
[1760147826242,0.01246,111590.0,111570.0,0.07955234]
[1760147826644,0.01246,111590.0,111570.0,0.17955233]
[1760147827105,0.41246,111590.0,111570.0,0.03020234]
[1760147827268,0.42848729,111590.0,111570.0,0.03020234]
[1760147827477,0.42848729,111590.0,111570.0,0.13020233]
[1760147827796,0.02069729,111590.0,111570.0,0.17955233]
[1760147827990,0.42848729,111590.0,111570.0,0.03020234]
[1760147828692,0.42005443,111590.0,111570.0,0.03020234]
[1760147829229,1.29714298,111590.0,111570.0,5.044e-05]
[1760147829361,0.4,111580.0,111570.0,5.044e-05]
[1760147829752,0.88487855,111590.0,111570.0,0.11251044]
[1760147829959,0.88487855,111590.0,111580.0,0.04758]
[1760147830444,0.88487855,111590.0,111570.0,0.04763044]
[1760147831091,0.88487855,111590.0,111570.0,0.03020234]
[1760147831506,0.88487855,111590.0,111570.0,0.07778234]
[1760147832079,0.88487855,111590.0,111570.0,0.17579234]
[1760147832342,0.88487855,111620.0,111580.0,0.21047]
[1760147832474,0.88487855,111620.0,111590.0,0.04758]
[1760147832659,0.95531039,111620.0,111580.0,0.04758]
[1760147832859,0.4,111610.0,111580.0,0.04758]
[1760147833951,0.4,111610.0,111570.0,0.17778233]
[1760147834138,0.4,111610.0,111580.0,0.04758]
[1760147834409,0.4,111610.0,111580.0,0.14559]
[1760147834601,0.88487855,111610.0,111590.0,0.04758]
[1760147834815,0.88487855,111610.0,111580.0,0.04758]
[1760147834994,1.28896855,111610.0,111580.0,0.13682825]
[1760147835337,1.28487855,111610.0,111590.0,0.04758]
[1760147835536,0.00654,111600.0,111590.0,0.04758]
[1760147835789,0.00654,111600.0,111580.0,0.13682825]
[1760147836147,0.00654,111600.0,111580.0,0.03881825]
[1760147836758,0.88487855,111610.0,111600.0,0.0301519]
[1760147836966,0.4,111630.0,111600.0,0.21047]
[1760147836967,0.88487855,111630.0,111600.0,0.21047]
[1760147837180,0.00654,111610.0,111590.0,0.14757999]
[1760147837529,0.00654,111610.0,111580.0,0.37881825]
[1760147837530,0.89550855,111610.0,111580.0,0.37881825]
[1760147837947,0.89517531,111610.0,111580.0,0.37881825]
[1760147838147,1.29517531,111610.0,111580.0,0.03881825]
[1760147838385,0.00376,111600.0,111580.0,0.03881825]
[1760147838596,0.00601,111590.0,111570.0,0.04763044]
[1760147839139,1.28863855,111610.0,111580.0,0.11246]
[1760147839947,1.28487855,111610.0,111580.0,0.11246]
[1760147840148,0.88487855,111620.0,111600.0,0.04758]
[1760147841119,0.00601,111610.0,111590.0,0.04758]
[1760147841241,0.00601,111610.0,111580.0,0.0777319]
[1760147841599,0.01428091,111610.0,111590.0,0.14559]
[1760147842189,0.01804091,111610.0,111580.0,0.17773189]
[1760147842389,0.01804091,111610.0,111580.0,0.1757419]
[1760147842595,0.01804091,111610.0,111580.0,0.17773189]
[1760147842998,0.00376,111600.0,111570.0,0.14763043]
[1760147843372,0.00376,111600.0,111570.0,0.04763044]
[1760147843373,0.88863855,111600.0,111570.0,0.04763044]
[1760147843573,0.00601,111580.0,111570.0,5.044e-05]
[1760147844144,0.9069797,111580.0,111570.0,5.044e-05]
[1760147844317,0.89464855,111580.0,111570.0,5.044e-05]
[1760147844674,0.4,111570.0,111540.0,0.04758]
[1760147844898,0.01252,111550.0,111540.0,0.03886504]
[1760147845739,0.01252,111560.0,111540.0,0.20175504]
[1760147846011,0.01252,111560.0,111550.0,0.04758]
[1760147846213,0.89739855,111560.0,111540.0,0.03886504]
[1760147847252,0.02003,111550.0,111540.0,5.051e-05]
[1760147848041,0.42003,111550.0,111540.0,5.051e-05]
[1760147848236,0.43255,111550.0,111540.0,5.051e-05]
[1760147849035,0.4,111530.0,111500.0,5.1096]
[1760147849252,0.01252,111510.0,111500.0,5.10975101]
[1760147849500,0.03255,111510.0,111500.0,5.10975101]
[1760147849708,0.91742855,111510.0,111500.0,5.10975101]
[1760147850223,1.31742855,111510.0,111500.0,5.10975101]
[1760147850423,1.32994855,111510.0,111500.0,5.10975101]
[1760147852864,1.31742855,111510.0,111500.0,5.10975101]
[1760147853413,0.89739855,111510.0,111500.0,5.32022101]
[1760147853609,1.57043184,111580.0,111510.0,0.0301519]
[1760147853610,0.89739855,111530.0,111510.0,0.0301519]
[1760147853751,0.89739855,111530.0,111510.0,0.0767319]
[1760147853752,0.90562502,111530.0,111510.0,0.0767319]
[1760147853950,0.02074647,111530.0,111520.0,0.04758]
[1760147854204,0.02074647,111530.0,111510.0,0.0767319]
[1760147854369,0.02074647,111530.0,111520.0,0.04758]
[1760147855031,0.01252,111530.0,111520.0,0.04758]
[1760147855363,0.03255,111530.0,111510.0,0.04758]
[1760147855565,0.04077198,111530.0,111510.0,0.04758]
[1760147855770,0.04077198,111530.0,111520.0,0.21047]
[1760147855771,0.00822198,111530.0,111520.0,0.21047]
[1760147855972,0.02074198,111540.0,111520.0,0.21047]
[1760147856216,0.00822198,111550.0,111530.0,0.14559]
[1760147856394,0.42074198,111560.0,111540.0,0.04758]
[1760147856589,0.42074198,111560.0,111540.0,0.04173635]
[1760147856816,0.42074198,111560.0,111550.0,0.04758]
[1760147856817,0.02074198,111560.0,111550.0,0.04758]
[1760147857091,0.01252,111560.0,111550.0,0.04758]
[1760147857474,0.01252,111560.0,111550.0,0.11246]
[1760147857675,0.02658198,111570.0,111550.0,0.21062101]
[1760147857983,0.02658198,111570.0,111560.0,0.04758]
[1760147858186,0.00449796,111570.0,111560.0,0.03881607]
[1760147858387,0.41327,111600.0,111570.0,0.0301519]
[1760147858536,0.41327,111600.0,111590.0,0.10853]
[1760147858537,0.01327,111600.0,111590.0,0.10853]
[1760147858943,0.01327,111600.0,111590.0,0.04844]
[1760147859152,0.88487855,111610.0,111590.0,0.2026]
[1760147859372,0.88487855,111610.0,111590.0,0.10853]
[1760147859577,0.41327,111620.0,111600.0,0.04844]
[1760147859745,1.29814855,111620.0,111600.0,0.04844]
[1760147859944,0.89814855,111620.0,111600.0,0.14251]
[1760147860154,0.4,111630.0,111610.0,0.2026]
[1760147860382,0.01327,111640.0,111620.0,0.04844]
[1760147860948,0.01396,111630.0,111610.0,0.04844]
[1760147861156,0.02723,111620.0,111590.0,0.04859101]
[1760147861411,0.01327,111600.0,111590.0,0.04859101]
[1760147862226,0.41327,111620.0,111590.0,0.20275101]
[1760147862456,0.41327,111640.0,111600.0,0.04844]
[1760147862661,1.29814855,111640.0,111600.0,0.14251]
[1760147862872,1.29814855,111640.0,111610.0,0.04844]
[1760147862873,0.4,111640.0,111610.0,0.04844]
[1760147863067,0.4,111640.0,111610.0,0.14251]
[1760147863811,0.4,111640.0,111620.0,0.04844]
[1760147864218,0.4,111640.0,111610.0,0.04844]
[1760147864424,0.4,111640.0,111600.0,0.04844]
[1760147864711,1.28487855,111640.0,111600.0,0.38844]
[1760147864915,1.28487855,111640.0,111590.0,0.04859101]
[1760147865118,0.4,111620.0,111590.0,0.00015101]
[1760147865336,1.28487855,111620.0,111590.0,0.00015101]
[1760147865745,1.28487855,111620.0,111590.0,0.04859101]
[1760147866525,1.28487855,111620.0,111590.0,0.00015101]
[1760147866729,1.28972855,111620.0,111580.0,0.11402285]
[1760147866981,1.28502952,111620.0,111590.0,0.14251]
[1760147867187,1.28502952,111620.0,111600.0,0.04844]
[1760147867401,0.00775,111610.0,111590.0,0.04844]
[1760147867551,0.88987952,111620.0,111590.0,0.04844]
[1760147867949,1.28987952,111620.0,111590.0,0.04844]
[1760147868390,0.00775,111600.0,111580.0,0.04359101]
[1760147868573,0.89262855,111600.0,111580.0,0.04359101]
[1760147868975,0.89107612,111600.0,111580.0,0.04359101]
[1760147869345,0.89436612,111600.0,111570.0,0.38844]
[1760147869651,1.29436612,111600.0,111570.0,0.04844]
[1760147869863,0.00329,111590.0,111560.0,0.11887184]
[1760147870303,0.00329,111590.0,111560.0,0.04844]
[1760147870717,0.00225182,111590.0,111560.0,0.04844]
[1760147871163,0.88487855,111590.0,111560.0,0.04844]
[1760147871463,0.89309049,111590.0,111560.0,0.04844]
[1760147872120,0.4,111580.0,111550.0,0.04844]
[1760147872383,0.40821194,111580.0,111530.0,0.04617]
[1760147872652,0.4,111570.0,111530.0,0.31034183]
[1760147872855,1.29309049,111570.0,111540.0,0.04617]
[1760147873195,1.29309049,111570.0,111540.0,0.14000029]
[1760147873401,1.29309049,111570.0,111540.0,0.04626029]
[1760147873624,1.29309049,111570.0,111540.0,9.029e-05]
[1760147873625,0.89309049,111570.0,111540.0,9.029e-05]
[1760147873800,1.28487855,111570.0,111540.0,9.029e-05]
[1760147874372,1.28487855,111570.0,111550.0,0.04617]
[1760147874526,1.28487855,111570.0,111540.0,9.029e-05]
[1760147875502,0.88487855,111590.0,111560.0,0.11094]
[1760147875716,1.28487855,111600.0,111560.0,0.11094]
[1760147875924,0.02814,111590.0,111560.0,0.09687408]
[1760147876805,0.88487855,111600.0,111560.0,0.19061408]
[1760147877006,1.28487855,111600.0,111560.0,0.19061408]
[1760147877133,1.28487855,111600.0,111570.0,0.04617]
[1760147877331,0.88487855,111600.0,111570.0,0.04617]
[1760147877569,0.88487855,111600.0,111580.0,0.04617]
[1760147878207,0.88487855,111600.0,111570.0,0.04617]
[1760147878834,0.88502949,111600.0,111570.0,0.04617]
[1760147879457,0.88502949,111600.0,111580.0,0.13991]
[1760147880474,0.88502949,111600.0,111590.0,0.04617]
[1760147880890,0.88502949,111600.0,111590.0,0.11094]
[1760147881033,0.88502949,111600.0,111590.0,0.20468]
[1760147881034,0.00015094,111600.0,111590.0,0.20468]
[1760147881659,0.00015094,111600.0,111590.0,0.2348319]
[1760147883704,0.09859851,111630.0,111600.0,0.0001451]
[1760147883880,0.09910332,111630.0,111600.0,0.0463151]
[1760147884106,0.09691389,111630.0,111600.0,0.0463151]
[1760147884330,0.09691389,111630.0,111600.0,0.1400551]
[1760147885249,0.50924504,111630.0,111600.0,0.0001451]
[1760147885450,0.49691389,111630.0,111590.0,0.04617]
[1760147885769,0.50517123,111630.0,111590.0,0.04617]
[1760147886012,0.50517123,111630.0,111600.0,0.04617]
[1760147886207,0.10517123,111630.0,111600.0,0.04617]
[1760147886424,0.50517123,111630.0,111590.0,0.04617]
[1760147886773,0.01233115,111620.0,111570.0,0.04617]
[1760147887140,0.01233115,111620.0,111570.0,0.11660184]
[1760147887141,0.90546704,111620.0,111570.0,0.11660184]
[1760147887329,0.4,111610.0,111570.0,0.11660184]
[1760147887597,0.40825734,111610.0,111570.0,0.11660184]
[1760147887934,0.40825734,111610.0,111570.0,0.21034184]
[1760147888135,0.40825734,111610.0,111570.0,0.11660184]
[1760147888363,0.40825734,111610.0,111570.0,0.04617]
[1760147888566,0.00825734,111610.0,111580.0,0.04798]
[1760147888769,0.00825734,111610.0,111600.0,0.11107]
[1760147888967,0.00825734,111610.0,111590.0,0.04798]
[1760147889692,0.00825734,111610.0,111600.0,0.11107]
[1760147890590,0.00825734,111610.0,111600.0,0.20301]
[1760147891473,0.00825734,111610.0,111600.0,0.11107]
[1760147892428,0.00825734,111610.0,111600.0,0.11207]
[1760147893324,0.00825734,111610.0,111600.0,0.2341619]
[1760147893670,0.10517123,111630.0,111600.0,0.2341619]
[1760147893793,0.10517123,111630.0,111620.0,0.04798]
[1760147893983,0.10517123,111630.0,111620.0,0.11107]
[1760147894608,0.10517123,111630.0,111620.0,0.04798]
[1760147895245,0.10517123,111630.0,111590.0,0.04798]
[1760147895246,0.50517123,111630.0,111590.0,0.04798]
[1760147895447,1.38814259,111630.0,111590.0,0.04798]
[1760147895650,0.98814259,111630.0,111600.0,0.04798]
[1760147895851,0.98814259,111630.0,111620.0,0.001]
[1760147896092,0.98814259,111630.0,111610.0,0.04798]
[1760147896269,0.10326404,111630.0,111610.0,0.04798]
[1760147897017,0.50326404,111630.0,111590.0,0.04798]
[1760147897148,0.10326404,111630.0,111590.0,0.04798]
[1760147897350,0.98814259,111630.0,111590.0,0.04798]
[1760147898000,0.98814259,111630.0,111590.0,0.13992]
[1760147898522,0.98814259,111630.0,111590.0,0.04798]
[1760147898700,1.38814259,111630.0,111590.0,0.04798]
[1760147899740,1.38814259,111630.0,111580.0,0.38798]
[1760147899868,1.38814259,111630.0,111590.0,0.04798]
[1760147900271,1.38814259,111630.0,111600.0,0.04798]
[1760147900272,0.98814259,111630.0,111600.0,0.04798]
[1760147901537,0.98914259,111630.0,111600.0,0.04798]
[1760147901685,0.98814259,111630.0,111600.0,0.04798]
[1760147901883,0.98914259,111630.0,111600.0,0.04798]
[1760147902980,0.98914259,111630.0,111610.0,0.04798]
[1760147903189,0.98914259,111630.0,111620.0,0.04798]
[1760147903415,1.02710259,111630.0,111620.0,0.03338037]
[1760147903726,1.02710259,111630.0,111610.0,0.04798]
[1760147904026,1.00374259,111630.0,111620.0,0.04798]
[1760147904235,1.00274259,111630.0,111620.0,0.04798]
[1760147904651,1.02610259,111630.0,111610.0,0.04798]
[1760147904793,1.04070259,111630.0,111600.0,0.04798]
[1760147905410,1.02610259,111630.0,111600.0,0.03921963]
[1760147905641,1.04946259,111630.0,111600.0,0.03921963]
[1760147906261,1.02610259,111630.0,111610.0,0.04798]
[1760147906461,1.02610259,111630.0,111620.0,0.06309]
[1760147906462,1.00274259,111630.0,111620.0,0.06309]
[1760147906666,1.00274259,111630.0,111620.0,0.11107]
[1760147907720,1.00274259,111630.0,111620.0,0.2331619]
[1760147907721,0.10326404,111630.0,111620.0,0.2331619]
[1760147907925,0.10326404,111630.0,111620.0,0.67316189]
[1760147908123,0.10326404,111630.0,111620.0,0.6673237]
[1760147908938,0.10326404,111630.0,111620.0,0.56732371]
[1760147909342,0.10326404,111630.0,111620.0,0.10623181]
[1760147909559,0.0950067,111630.0,111620.0,0.10623181]
[1760147909777,0.0950067,111630.0,111620.0,0.19817181]
[1760147910796,0.0950067,111630.0,111620.0,0.22832371]
[1760147911235,0.09471143,111630.0,111620.0,0.22832371]
[1760147911420,0.10299148,111630.0,111620.0,0.22832371]
[1760147911624,0.10299148,111630.0,111620.0,0.10623181]
[1760147911835,0.09471143,111630.0,111620.0,0.10623181]
[1760147912210,0.09471143,111630.0,111620.0,0.11207]
[1760147912391,0.09471143,111630.0,111620.0,0.04898]
[1760147912789,0.12108143,111630.0,111620.0,0.001]
[1760147913043,0.15025143,111630.0,111620.0,0.001]
[1760147913248,1.03512998,111630.0,111620.0,0.001]
[1760147913738,1.00595998,111630.0,111620.0,0.001]
[1760147913942,1.00595998,111630.0,111620.0,0.20401]
[1760147913943,0.09471143,111630.0,111620.0,0.20401]
[1760147914306,0.09471143,111630.0,111620.0,0.11207]
[1760147914526,0.09471143,111630.0,111620.0,0.2341619]
[1760147914707,0.09471143,111630.0,111620.0,0.2331619]
[1760147915348,0.1029922,111630.0,111620.0,0.2331619]
[1760147916868,0.1029922,111630.0,111620.0,0.1412219]
[1760147917109,0.1193722,111630.0,111620.0,0.1306819]
[1760147917244,0.13168143,111630.0,111610.0,0.04798]
[1760147917581,0.13168143,111630.0,111620.0,0.001]
[1760147918022,0.11109143,111630.0,111620.0,0.04798]
[1760147918425,0.11109143,111630.0,111620.0,0.04898]
[1760147918606,0.11109143,111630.0,111620.0,0.11049]
[1760147918806,0.09471143,111630.0,111620.0,0.1406419]
[1760147919017,1.25864316,111650.0,111620.0,0.2330619]
[1760147919182,1.25864316,111650.0,111630.0,0.04575]
[1760147919183,1.25877881,111650.0,111630.0,0.04575]
[1760147919595,0.3821831,111650.0,111630.0,0.13817]
[1760147919831,0.00841849,111650.0,111630.0,0.04575]
[1760147920031,0.00841849,111650.0,111620.0,0.0791319]
[1760147920032,0.03732,111640.0,111620.0,0.0791319]
[1760147920177,0.00013565,111650.0,111630.0,0.04575]
[1760147920944,0.02682,111640.0,111620.0,0.0781319]
[1760147921152,0.04973,111640.0,111620.0,0.001]
[1760147921510,0.04973,111640.0,111610.0,0.38798]
[1760147921740,0.02254,111620.0,111610.0,0.0781319]
[1760147921938,0.04931,111620.0,111600.0,0.04575]
[1760147922709,0.02254,111620.0,111600.0,0.13817]
[1760147923084,0.03082425,111620.0,111600.0,0.13817]
[1760147924123,0.03009462,111620.0,111610.0,0.001]
[1760147924323,0.03009462,111620.0,111600.0,0.13817]
[1760147924528,0.04968,111610.0,111580.0,0.04575]
[1760147924797,0.94284331,111610.0,111600.0,0.001]
[1760147925121,0.89316331,111610.0,111590.0,0.0759019]
[1760147925318,0.00828476,111610.0,111600.0,0.2298319]
[1760147925523,0.91534331,111630.0,111610.0,0.0301519]
[1760147925728,0.91534331,111630.0,111620.0,0.10726]
[1760147925894,0.91534331,111630.0,111620.0,0.10142041]
[1760147926115,0.00828476,111630.0,111620.0,0.22399231]
[1760147926308,0.02802,111640.0,111620.0,0.22399231]
[1760147926309,0.00828476,111640.0,111620.0,0.22399231]
[1760147926504,0.00828476,111640.0,111630.0,0.1683219]
[1760147926907,0.02063,111640.0,111620.0,0.04575]
[1760147927108,0.02891476,111640.0,111620.0,0.04575]
[1760147928297,0.00828476,111640.0,111630.0,0.04575]
[1760147928503,0.00828476,111640.0,111630.0,0.10726]
[1760147928621,0.03630975,111650.0,111630.0,0.10726]
[1760147929029,0.03630975,111650.0,111630.0,0.19092161]
[1760147929228,0.03631006,111650.0,111640.0,0.04575]
[1760147929443,0.03631006,111650.0,111640.0,0.1370419]
[1760147929892,0.02444631,111650.0,111640.0,0.0759019]
[1760147930066,0.02444631,111650.0,111640.0,0.1370419]
[1760147930272,0.02444631,111650.0,111640.0,0.2284719]
[1760147930650,0.00829006,111650.0,111640.0,0.2284719]
[1760147930863,0.02062,111680.0,111650.0,0.0301519]
[1760147930864,0.02891006,111680.0,111650.0,0.0301519]
[1760147931111,0.02891006,111680.0,111650.0,0.1706519]
[1760147931313,0.02891006,111680.0,111660.0,0.04907]
[1760147931695,0.03986,111670.0,111650.0,0.0792219]
[1760147931862,0.93443861,111670.0,111640.0,0.04575]
[1760147932910,0.93302861,111670.0,111650.0,0.0792219]
[1760147933174,0.89316861,111670.0,111660.0,0.1403619]
[1760147933381,0.89316861,111670.0,111660.0,0.2317919]
[1760147933710,0.00829006,111670.0,111660.0,0.5717919]
[1760147933859,0.02491,111700.0,111660.0,0.5717919]
[1760147933860,0.03320006,111700.0,111660.0,0.5717919]
[1760147934064,0.03335142,111700.0,111670.0,0.1405]
[1760147934262,0.05826142,111700.0,111670.0,0.04907]
[1760147934850,0.05826142,111700.0,111670.0,0.1405]
[1760147934851,0.03335142,111700.0,111670.0,0.1405]
[1760147935076,0.03335142,111700.0,111680.0,0.04907]
[1760147936663,0.03335142,111700.0,111680.0,0.1405]
[1760147936874,0.03662,111690.0,111670.0,0.04907]
[1760147937077,0.04528006,111690.0,111670.0,0.04907]
[1760147938238,0.04491006,111690.0,111670.0,0.04907]
[1760147938843,0.04528006,111690.0,111660.0,0.04907]
[1760147939018,0.00037,111680.0,111650.0,0.04907]
[1760147939222,0.02491,111660.0,111650.0,0.04907]
[1760147939435,0.07019006,111660.0,111620.0,0.04907]
[1760147939648,0.00073,111650.0,111610.0,0.04907]
[1760147939850,0.04958,111640.0,111610.0,0.04907]
[1760147940432,0.04958,111640.0,111610.0,0.04957481]
[1760147940884,0.04958,111640.0,111610.0,0.05057481]
[1760147941074,0.0122,111620.0,111610.0,0.00150481]
[1760147941707,0.03699,111620.0,111610.0,0.00150481]
[1760147941909,0.92186855,111620.0,111610.0,0.00150481]
[1760147942840,0.92186855,111620.0,111610.0,0.00050481]
[1760147945345,0.88487855,111620.0,111610.0,0.00050481]
[1760147946689,1.28487855,111620.0,111610.0,0.00050481]
[1760147947268,1.283389,111620.0,111610.0,0.00050481]
[1760147947480,1.28487855,111620.0,111610.0,0.00050481]
[1760147948297,1.4942098,111620.0,111610.0,0.00050481]
[1760147949007,1.31503045,111620.0,111610.0,6.85e-06]
[1760147949252,1.31603045,111620.0,111610.0,6.85e-06]
[1760147949452,1.28587855,111620.0,111610.0,6.85e-06]
[1760147950003,1.31603045,111620.0,111610.0,6.85e-06]
[1760147950555,1.4952098,111620.0,111610.0,6.85e-06]
[1760147950944,1.0952098,111620.0,111610.0,6.85e-06]
[1760147951128,1.31603045,111620.0,111610.0,6.85e-06]
[1760147951538,1.4952098,111620.0,111610.0,6.85e-06]
[1760147952391,1.51851285,111620.0,111610.0,6.85e-06]
[1760147952568,1.61851284,111620.0,111610.0,6.85e-06]
[1760147952767,1.64351283,111620.0,111610.0,6.85e-06]
[1760147953736,1.64251283,111620.0,111610.0,6.85e-06]
[1760147953885,1.41703044,111620.0,111610.0,6.85e-06]
[1760147954092,1.31703045,111620.0,111610.0,6.85e-06]
[1760147954309,1.41703044,111620.0,111610.0,6.85e-06]
[1760147954508,1.59620979,111620.0,111610.0,6.85e-06]
[1760147954892,1.62120978,111620.0,111610.0,6.85e-06]
[1760147955297,1.64451283,111620.0,111610.0,6.85e-06]
[1760147956617,1.66694089,111620.0,111610.0,6.85e-06]
[1760147956740,0.4,111560.0,111530.0,0.07043184]
[1760147956941,0.4,111560.0,111530.0,0.07056749]
[1760147956942,0.01233115,111550.0,111530.0,0.07056749]
[1760147957558,0.01233115,111550.0,111530.0,0.00013565]
[1760147958466,1.28487855,111560.0,111530.0,0.04740565]
[1760147958683,0.01233115,111550.0,111530.0,0.00013565]
[1760147959047,0.01077534,111550.0,111530.0,0.00013565]
[1760147959928,1.28487855,111560.0,111530.0,0.04740565]
[1760147961259,1.28487855,111560.0,111530.0,0.13951565]
[1760147961473,0.88487855,111560.0,111540.0,0.13938]
[1760147961674,0.88487855,111560.0,111530.0,0.04740565]
[1760147962185,0.88359163,111560.0,111530.0,0.04740565]
[1760147962565,0.01077534,111550.0,111530.0,0.04740565]
[1760147963211,0.01077534,111550.0,111530.0,0.00013565]
[1760147963771,1.28487855,111560.0,111530.0,0.04740565]
[1760147964118,0.88487855,111560.0,111540.0,0.04727]
[1760147964475,0.88487855,111560.0,111530.0,0.04740565]
[1760147964817,0.88487855,111560.0,111540.0,0.04727]
[1760147965162,0.88487855,111560.0,111530.0,0.04740565]
[1760147965367,0.88487855,111560.0,111540.0,0.04727]
[1760147965573,0.88487855,111570.0,111540.0,0.04727]
[1760147966402,0.88487855,111570.0,111530.0,0.13951565]
[1760147966829,0.88487855,111570.0,111540.0,0.04727]
[1760147968536,0.88487855,111570.0,111530.0,0.04740565]
[1760147969147,0.88487855,111570.0,111530.0,0.13951565]
[1760147970169,0.88487855,111570.0,111540.0,0.04727]
[1760147972339,0.88487855,111570.0,111540.0,0.13938]
[1760147972545,0.88487855,111570.0,111560.0,0.10804]
[1760147972763,0.88487855,111570.0,111560.0,0.04727]
[1760147972963,0.88487855,111570.0,111550.0,0.13938]
[1760147973378,0.88487855,111570.0,111550.0,0.04727]
[1760147973993,0.88487855,111570.0,111550.0,0.13938]
[1760147974209,0.88487855,111570.0,111560.0,0.20015]
[1760147974411,0.88487855,111590.0,111570.0,0.0301519]
[1760147974637,0.88487855,111590.0,111580.0,0.10804]
[1760147975049,0.88487855,111590.0,111570.0,0.04727]
[1760147975256,0.88487855,111590.0,111570.0,0.13938]
[1760147975463,0.88487855,111590.0,111580.0,0.04727]
[1760147975667,0.88487855,111590.0,111580.0,0.10804]
[1760147975874,0.88487855,111610.0,111580.0,0.20015]
[1760147976525,0.88487855,111610.0,111570.0,0.04740565]
[1760147976526,0.01077534,111600.0,111570.0,0.04740565]
[1760147976942,0.01077534,111600.0,111570.0,0.13951565]
[1760147977145,0.01077534,111600.0,111580.0,0.04727]
[1760147977553,0.88487855,111610.0,111580.0,0.04727]
[1760147978209,0.01077534,111600.0,111580.0,0.04727]
[1760147978483,0.88487855,111610.0,111590.0,0.10838]
[1760147978908,1.35531039,111640.0,111600.0,0.1375]
[1760147979146,0.88487855,111640.0,111610.0,0.047]
[1760147979570,0.01077534,111630.0,111610.0,0.047]
[1760147979992,0.88487855,111640.0,111610.0,0.047]
[1760147980204,0.88538296,111640.0,111610.0,0.047]
[1760147981496,0.88538296,111640.0,111610.0,0.1375]
[1760147982202,0.88538296,111640.0,111610.0,0.047]
[1760147982402,0.00050441,111640.0,111610.0,0.047]
[1760147982601,0.88538296,111640.0,111620.0,0.047]
[1760147982908,0.00050441,111640.0,111630.0,0.10838]
[1760147983332,0.00050441,111640.0,111620.0,0.047]
[1760147983724,0.88538296,111640.0,111610.0,0.047]
[1760147984144,0.01077534,111630.0,111600.0,0.047]
[1760147984916,0.01077534,111630.0,111590.0,0.047]
[1760147986379,0.01077534,111630.0,111600.0,0.047]
[1760147986573,1.28538296,111640.0,111600.0,0.047]
[1760147986789,0.01077534,111630.0,111610.0,0.047]
[1760147987603,0.01077534,111630.0,111600.0,0.047]
[1760147988020,0.01077534,111630.0,111590.0,0.047]
[1760147988230,0.01077534,111630.0,111600.0,0.047]
[1760147988663,0.01077534,111630.0,111590.0,0.047]
[1760147989094,0.01077534,111630.0,111600.0,0.047]
[1760147989307,0.88538296,111640.0,111600.0,0.047]
[1760147989486,0.01077534,111630.0,111600.0,0.047]
[1760147990117,0.01077534,111630.0,111590.0,0.047]
[1760147990789,0.01077534,111630.0,111580.0,0.047]
[1760147991023,0.4,111620.0,111580.0,0.047]
[1760147991235,0.01077534,111610.0,111580.0,0.047]
[1760147991451,0.01077534,111610.0,111570.0,0.047]
[1760147992032,0.01077534,111610.0,111560.0,0.049]
[1760147992237,0.08120718,111610.0,111560.0,0.049]
[1760147992414,0.4,111590.0,111550.0,0.049]
[1760147992615,0.01077534,111580.0,111540.0,0.14836]
[1760147993648,0.01077534,111580.0,111540.0,0.04913565]
[1760147993843,0.01077534,111580.0,111540.0,0.14849565]
[1760147994545,0.01077534,111580.0,111550.0,0.14836]
[1760147994710,0.88487855,111590.0,111570.0,0.049]
[1760147995068,0.01077534,111580.0,111570.0,0.049]
[1760147995295,0.01077534,111580.0,111560.0,0.049]
[1760147995494,0.88487855,111590.0,111560.0,0.049]
[1760147995697,0.01077534,111580.0,111560.0,0.049]
[1760147996611,0.01077534,111580.0,111540.0,0.04913565]